bitfinex/quotes_SOLUSD_20220306
["timestamp","ask_amount","ask_price","bid_price","bid_amount"]
[1646571205182,3.12204246,87.329,87.29,17.1887]
[1646571205383,3.12204246,87.329,87.291,64.40800232]
[1646571205584,3.12204246,87.329,87.291,67.24413758]
[1646571205983,3.12204246,87.329,87.291,94.45661583]
[1646571206183,3.12204246,87.329,87.292,2.83613526]
[1646571206888,3.12204246,87.329,87.293,5.726]
[1646571207087,3.12204246,87.329,87.3,17.1871]
[1646571207287,3.12204246,87.332,87.3,17.1871]
[1646571207488,3.12204246,87.333,87.3,17.1871]
[1646571207688,3.12204246,87.333,87.301,2.83613526]
[1646571207888,3.12204246,87.335,87.301,2.83613526]
[1646571208088,3.12204246,87.348,87.31,17.185]
[1646571208292,3.12204246,87.353,87.311,62.49103524]
[1646571208488,3.12204246,87.353,87.311,92.53964875]
[1646571208690,3.12204246,87.353,87.312,27.21247825]
[1646571208889,3.12204246,87.35,87.312,27.21247825]
[1646571209088,3.12204246,87.351,87.312,27.21247825]
[1646571209495,3.12204246,87.353,87.312,30.04861351]
[1646571210093,3.12204246,87.354,87.312,30.04861351]
[1646571210290,57.06530842,87.354,87.312,30.04861351]
[1646571210490,57.06530842,87.354,87.312,2.83613526]
[1646571211293,120.424,87.353,87.312,2.83613526]
[1646571211493,57.06530842,87.354,87.312,2.83613526]
[1646571212099,57.06530842,87.354,87.311,62.49103524]
[1646571212100,114.7,87.353,87.302,5.724]
[1646571212394,3.12204246,87.35,87.302,5.724]
[1646571212594,5.724,87.349,87.302,5.724]
[1646571212795,3.12204246,87.348,87.302,5.724]
[1646571213094,3.12204246,87.349,87.302,5.724]
[1646571213294,114.7,87.347,87.302,5.724]
[1646571214294,5.724,87.349,87.303,2.83613526]
[1646571215595,5.724,87.351,87.303,2.83613526]
[1646571215798,3.12204246,87.352,87.303,2.83613526]
[1646571215994,3.12204246,87.352,87.303,30.04861351]
[1646571216298,3.12204246,87.352,87.304,2.83613526]
[1646571216498,3.12204246,87.351,87.304,2.83613526]
[1646571220502,24.8437,87.356,87.31,17.1852]
[1646571220503,3.12204246,87.353,87.31,17.1852]
[1646571220704,24.8437,87.356,87.31,17.1852]
[1646571220902,24.8437,87.356,87.311,30.04861351]
[1646571221301,24.8437,87.356,87.312,30.04861351]
[1646571221702,24.8437,87.356,87.313,30.04861351]
[1646571222002,24.8437,87.356,87.314,2.83613526]
[1646571222202,24.8437,87.356,87.315,47.75259702]
[1646571222507,3.12204246,87.364,87.32,17.1819]
[1646571222704,3.12204246,87.365,87.32,17.1819]
[1646571223004,3.12204246,87.37,87.321,30.04861351]
[1646571223203,24.1621,87.387,87.321,30.04861351]
[1646571223204,3.12204246,87.374,87.321,30.04861351]
[1646571223403,3.12204246,87.38,87.33,17.1799]
[1646571223603,50.52530959,87.38,87.331,51.48435361]
[1646571223805,114.7,87.379,87.331,2.83613526]
[1646571224205,5.723,87.378,87.331,2.83613526]
[1646571224809,5.723,87.378,87.332,50.67726904]
[1646571225010,114.7,87.379,87.332,50.67726904]
[1646571227108,47.40326713,87.38,87.332,53.5134043]
[1646571227308,47.40326713,87.38,87.34,17.1783]
[1646571227511,114.7,87.379,87.333,27.21247825]
[1646571227708,114.7,87.379,87.332,2.83613526]
[1646571229008,5.723,87.378,87.332,2.83613526]
[1646571229408,5.723,87.378,87.3,57.2706]
[1646571229409,114.7,87.371,87.307,2.83613526]
[1646571229607,47.40326713,87.38,87.3,27.21247825]
[1646571229608,5.34192208,87.364,87.3,27.21247825]
[1646571229808,5.724,87.363,87.3,27.21247825]
[1646571230008,114.7,87.361,87.3,27.21247825]
[1646571230211,5.724,87.36,87.3,27.21247825]
[1646571230410,114.7,87.358,87.303,63.27721399]
[1646571230637,120.424,87.358,87.303,63.27721399]
[1646571230914,120.424,87.358,87.3,27.21247825]
[1646571231311,120.424,87.358,87.303,27.21247825]
[1646571232211,120.424,87.358,87.303,30.04861351]
[1646571233218,114.7,87.358,87.303,30.04861351]
[1646571233813,60.67339172,87.359,87.303,30.04861351]
[1646571234012,114.7,87.358,87.303,30.04861351]
[1646571234513,5.724,87.357,87.303,30.04861351]
[1646571235317,5.724,87.358,87.303,30.04861351]
[1646571235716,120.424,87.358,87.303,30.04861351]
[1646571237217,5.724,87.358,87.303,30.04861351]
[1646571237417,120.424,87.358,87.303,30.04861351]
[1646571238018,120.424,87.358,87.303,57.11194571]
[1646571239347,5.724,87.358,87.303,57.11194571]
[1646571239843,120.424,87.358,87.303,57.11194571]
[1646571240042,5.724,87.358,87.303,57.11194571]
[1646571240547,23.2393,87.362,87.303,57.11194571]
[1646571240744,23.2393,87.362,87.31,17.1845]
[1646571241143,23.2393,87.362,87.311,57.11194571]
[1646571241544,23.2393,87.362,87.312,57.11194571]
[1646571241944,114.7,87.361,87.313,30.04861351]
[1646571242345,120.424,87.361,87.313,27.21247825]
[1646571242844,114.7,87.361,87.313,27.21247825]
[1646571243445,5.724,87.36,87.313,27.21247825]
[1646571243645,114.7,87.361,87.313,27.21247825]
[1646571244148,23.2393,87.362,87.313,27.21247825]
[1646571245048,23.2393,87.362,87.314,2.83613526]
[1646571245249,23.2393,87.362,87.32,17.1825]
[1646571245847,23.2393,87.362,87.321,53.88804078]
[1646571250458,114.7,87.361,87.315,27.21247825]
[1646571250657,68.81,87.356,87.298,27.21247825]
[1646571250865,183.51,87.355,87.286,31.30157367]
[1646571251258,183.51,87.355,87.287,27.21247825]
[1646571251457,183.51,87.355,87.288,46.6216186]
[1646571251758,183.51,87.355,87.289,27.21247825]
[1646571253461,186.63204246,87.355,87.289,27.21247825]
[1646571253859,3.12204246,87.352,87.289,27.21247825]
[1646571254061,114.7,87.348,87.289,27.21247825]
[1646571254265,5.726,87.347,87.29,17.1889]
[1646571254668,5.726,87.347,87.291,27.21247825]
[1646571255262,5.726,87.347,87.292,2.83613526]
[1646571255462,114.7,87.348,87.292,2.83613526]
[1646571255663,114.7,87.348,87.293,27.21247825]
[1646571255966,114.7,87.35,87.293,27.21247825]
[1646571256163,3.12204246,87.359,87.3,17.1867]
[1646571256364,3.12204246,87.373,87.3,17.1867]
[1646571256562,3.12204246,87.373,87.301,57.11194571]
[1646571256763,3.12204246,87.375,87.301,72.25451938]
[1646571256963,3.12204246,87.375,87.302,105.00530012]
[1646571257164,3.12204246,87.373,87.31,17.1812]
[1646571257364,138.9832,87.364,87.31,17.1812]
[1646571257565,64.81129161,87.363,87.31,17.1812]
[1646571257764,114.7,87.362,87.311,30.04861351]
[1646571258165,114.7,87.362,87.312,27.21247825]
[1646571258767,114.7,87.363,87.32,17.1829]
[1646571259167,24.2832,87.364,87.321,27.21247825]
[1646571259467,24.2832,87.364,87.322,47.64583137]
[1646571259767,24.2832,87.364,87.322,50.48196663]
[1646571259967,138.9832,87.364,87.323,30.04861351]
[1646571260769,138.9832,87.364,87.323,27.21247825]
[1646571260969,24.2832,87.364,87.323,27.21247825]
[1646571261175,24.2832,87.364,87.324,2.83613526]
[1646571261372,23.7832,87.364,87.324,2.83613526]
[1646571261571,23.7832,87.364,87.325,27.21247825]
[1646571261970,23.7832,87.364,87.33,17.1807]
[1646571262172,22.7045,87.37,87.33,17.1807]
[1646571262372,22.7045,87.37,87.331,30.04861351]
[1646571262776,22.7045,87.37,87.332,30.04861351]
[1646571263175,22.7045,87.37,87.333,2.83613526]
[1646571263374,22.7045,87.37,87.333,30.04861351]
[1646571263576,22.7045,87.37,87.333,2.83613526]
[1646571263778,22.7045,87.37,87.334,30.04861351]
[1646571264177,22.7045,87.37,87.341,52.27210803]
[1646571264594,22.7045,87.37,87.342,2.83613526]
[1646571264794,117.82204246,87.386,87.342,2.83613526]
[1646571264994,3.12204246,87.385,87.341,52.27210803]
[1646571265194,117.82204246,87.386,87.341,52.27210803]
[1646571266094,114.7,87.386,87.341,52.27210803]
[1646571266301,3.12204246,87.386,87.341,52.27210803]
[1646571266494,5.723,87.385,87.341,52.27210803]
[1646571266897,5.723,87.386,87.341,52.27210803]
[1646571267397,114.7,87.386,87.341,52.27210803]
[1646571267597,5.723,87.385,87.341,52.27210803]
[1646571268197,5.723,87.385,87.335,27.21247825]
[1646571268698,114.7,87.385,87.335,27.21247825]
[1646571268902,5.723,87.384,87.335,27.21247825]
[1646571269099,58.20626132,87.383,87.336,49.22828091]
[1646571269303,5.723,87.382,87.34,17.1785]
[1646571269502,58.20626132,87.383,87.34,17.1785]
[1646571270102,58.20626132,87.383,87.336,49.22828091]
[1646571270302,114.7,87.382,87.336,49.22828091]
[1646571270501,114.7,87.382,87.326,2.83613526]
[1646571270702,114.7,87.38,87.322,27.096794]
[1646571270904,5.724,87.379,87.322,27.096794]
[1646571271505,5.724,87.379,87.323,50.8833337]
[1646571273104,1.56040788,87.356,87.323,50.8833337]
[1646571273509,1.56040788,87.357,87.323,50.8833337]
[1646571273707,1.56040788,87.356,87.322,27.096794]
[1646571274109,1.56040788,87.351,87.314,2.83613526]
[1646571274307,1.56040788,87.351,87.304,27.096794]
[1646571274507,1.56040788,87.341,87.304,27.096794]
[1646571274706,114.7,87.339,87.305,47.40329499]
[1646571275807,116.26040788,87.339,87.305,47.40329499]
[1646571276008,1.56040788,87.337,87.305,47.40329499]
[1646571276207,1.56040788,87.339,87.306,27.096794]
[1646571276407,1.56040788,87.341,87.306,27.096794]
[1646571276614,1.56040788,87.341,87.307,5.724]
[1646571276809,1.56040788,87.341,87.307,8.56013526]
[1646571277009,114.7,87.339,87.308,27.096794]
[1646571277209,116.26040788,87.339,87.309,5.724]
[1646571277609,1.56040788,87.335,87.295,32.820794]
[1646571277809,1.56040788,87.327,87.295,27.096794]
[1646571278409,114.7,87.325,87.295,27.096794]
[1646571278609,114.7,87.325,87.282,27.096794]
[1646571278810,1.56040788,87.324,87.282,27.096794]
[1646571279212,1.56040788,87.316,87.268,51.765394]
[1646571279410,1.56040788,87.316,87.274,27.096794]
[1646571279609,1.56040788,87.315,87.274,27.096794]
[1646571279808,1.56040788,87.316,87.274,27.096794]
[1646571280010,1.56040788,87.315,87.274,27.096794]
[1646571280212,1.56040788,87.318,87.274,27.096794]
[1646571280710,114.7,87.31,87.274,27.096794]
[1646571280912,5.727,87.309,87.274,27.096794]
[1646571281314,120.427,87.31,87.274,27.096794]
[1646571281511,114.7,87.31,87.274,27.096794]
[1646571281911,1.56040788,87.312,87.274,27.096794]
[1646571282311,114.7,87.31,87.274,27.096794]
[1646571284817,5.727,87.309,87.274,27.096794]
[1646571286530,5.727,87.309,87.269,51.97838145]
[1646571287419,5.727,87.309,87.26,54.1601262]
[1646571287617,5.727,87.309,87.26,27.096794]
[1646571288418,5.727,87.309,87.261,61.98984349]
[1646571289119,5.727,87.309,87.262,27.096794]
[1646571289321,74.537,87.309,87.262,27.096794]
[1646571289519,118.996667,87.302,87.251,2.83613526]
[1646571289718,5.728,87.301,87.251,2.83613526]
[1646571290119,5.728,87.301,87.252,27.096794]
[1646571290318,114.7,87.3,87.252,27.096794]
[1646571290521,5.728,87.299,87.253,51.33366701]
[1646571291519,114.7,87.3,87.253,51.33366701]
[1646571291720,114.7,87.3,87.254,27.096794]
[1646571294525,5.728,87.299,87.254,27.096794]
[1646571296626,5.728,87.299,87.254,54.1601262]
[1646571296825,5.728,87.31,87.254,54.1601262]
[1646571297030,5.728,87.31,87.255,27.096794]
[1646571297627,120.428,87.31,87.255,27.096794]
[1646571298228,114.7,87.308,87.255,27.096794]
[1646571298426,5.728,87.307,87.255,27.096794]
[1646571300028,5.728,87.307,87.26,17.1953]
[1646571300228,1.56040788,87.315,87.26,17.1953]
[1646571300428,1.56040788,87.323,87.261,83.4832262]
[1646571300631,1.56040788,87.324,87.261,86.31936146]
[1646571300830,1.56040788,87.324,87.262,56.99626146]
[1646571301030,1.56040788,87.323,87.263,5.727]
[1646571301231,1.56040788,87.323,87.263,62.72326146]
[1646571301530,1.56040788,87.323,87.264,56.99626146]
[1646571301730,1.56040788,87.323,87.265,5.727]
[1646571301933,1.56040788,87.324,87.265,62.72326146]
[1646571302134,1.56040788,87.318,87.27,17.1902]
[1646571302331,1.56040788,87.319,87.272,64.02570825]
[1646571302733,1.56040788,87.319,87.272,91.12250225]
[1646571302931,1.56040788,87.319,87.273,2.83613526]
[1646571303133,1.56040788,87.32,87.273,2.83613526]
[1646571303534,1.56040788,87.318,87.273,2.83613526]
[1646571303733,1.56040788,87.319,87.274,5.727]
[1646571304334,1.56040788,87.319,87.274,8.56313526]
[1646571304534,1.56040788,87.319,87.274,2.83613526]
[1646571305137,1.56040788,87.318,87.274,2.83613526]
[1646571305341,1.56040788,87.316,87.274,2.83613526]
[1646571305735,1.56040788,87.316,87.275,27.096794]
[1646571305936,1.56040788,87.316,87.276,5.727]
[1646571307240,1.56040788,87.311,87.276,5.727]
[1646571308339,1.56040788,87.312,87.276,5.727]
[1646571308742,1.56040788,87.312,87.28,17.1911]
[1646571309141,1.56040788,87.316,87.281,2.83613526]
[1646571309344,1.56040788,87.317,87.281,2.83613526]
[1646571309545,120.427,87.333,87.281,2.83613526]
[1646571309546,1.56040788,87.319,87.281,2.83613526]
[1646571309748,1.56040788,87.319,87.29,17.1889]
[1646571309945,1.56040788,87.325,87.29,17.1889]
[1646571310149,1.56040788,87.334,87.291,2.83613526]
[1646571310345,1.56040788,87.338,87.292,24.902]
[1646571310547,1.56040788,87.338,87.292,51.998794]
[1646571310747,1.56040788,87.335,87.293,78.32539164]
[1646571310945,1.56040788,87.335,87.293,81.1615269]
[1646571311147,1.56040788,87.335,87.294,29.93292926]
[1646571311349,1.56040788,87.332,87.3,17.187]
[1646571311547,1.56040788,87.331,87.295,29.93292926]
[1646571311948,1.56040788,87.33,87.296,27.096794]
[1646571312353,1.56040788,87.334,87.296,27.096794]
[1646571312550,1.56040788,87.333,87.296,27.096794]
[1646571312950,1.56040788,87.334,87.296,27.096794]
[1646571313162,1.56040788,87.333,87.297,2.83613526]
[1646571313365,1.56040788,87.336,87.297,2.83613526]
[1646571313969,1.56040788,87.338,87.297,2.83613526]
[1646571314670,1.56040788,87.337,87.297,2.83613526]
[1646571315065,1.56040788,87.337,87.3,17.1871]
[1646571315267,1.56040788,87.338,87.3,17.1871]
[1646571315465,1.56040788,87.34,87.3,17.1871]
[1646571315767,1.56040788,87.34,87.297,2.83613526]
[1646571315967,1.56040788,87.338,87.293,51.22859764]
[1646571316167,5.726,87.345,87.293,51.22859764]
[1646571316168,1.56040788,87.337,87.293,51.22859764]
[1646571316766,1.56040788,87.337,87.292,24.902]
[1646571316967,1.56040788,87.329,87.292,24.902]
[1646571317579,5.726,87.339,87.292,24.902]
[1646571317580,1.56040788,87.33,87.292,24.902]
[1646571317867,1.56040788,87.33,87.293,50.89288905]
[1646571318066,116.26040788,87.331,87.293,50.89288905]
[1646571318767,1.56040788,87.331,87.293,50.89288905]
[1646571318967,1.56040788,87.33,87.293,50.89288905]
[1646571319172,1.56040788,87.331,87.293,50.89288905]
[1646571319976,1.56040788,87.331,87.293,53.72902431]
[1646571320172,1.56040788,87.331,87.293,80.82581831]
[1646571320373,1.56040788,87.335,87.293,77.82581831]
[1646571320574,22.6432,87.341,87.293,77.82581831]
[1646571320777,1.56040788,87.343,87.293,77.82581831]
[1646571321175,1.56040788,87.342,87.3,17.1871]
[1646571321377,1.56040788,87.343,87.3,17.1871]
[1646571321576,1.56040788,87.343,87.301,2.83613526]
[1646571321777,1.56040788,87.344,87.301,2.83613526]
[1646571322378,5.724,87.343,87.301,2.83613526]
[1646571322582,1.56040788,87.344,87.301,2.83613526]
[1646571323179,1.56040788,87.343,87.301,2.83613526]
[1646571324180,1.56040788,87.343,87.31,17.1848]
[1646571324381,1.56040788,87.356,87.31,17.1848]
[1646571324680,1.56040788,87.357,87.312,58.88959017]
[1646571324882,24.6273,87.372,87.313,23.9461]
[1646571324883,1.56040788,87.361,87.313,23.9461]
[1646571325083,1.56040788,87.363,87.313,53.87902926]
[1646571325280,1.56040788,87.363,87.314,27.096794]
[1646571325481,1.56040788,87.363,87.32,17.1819]
[1646571325681,1.56040788,87.364,87.32,17.1819]
[1646571325880,1.56040788,87.363,87.32,17.1819]
[1646571326080,1.56040788,87.362,87.321,2.83613526]
[1646571326682,1.56040788,87.361,87.321,2.83613526]
[1646571327282,1.56040788,87.364,87.321,2.83613526]
[1646571327686,1.56040788,87.365,87.321,2.83613526]
[1646571328285,1.56040788,87.364,87.33,17.1807]
[1646571328483,1.56040788,87.366,87.331,61.23116757]
[1646571328883,1.56040788,87.367,87.331,61.23116757]
[1646571329294,1.56040788,87.363,87.331,61.23116757]
[1646571330287,1.56040788,87.363,87.331,58.23116757]
[1646571330486,46.36931557,87.362,87.321,29.93292926]
[1646571330683,1.56040788,87.358,87.313,23.9461]
[1646571330885,1.56040788,87.353,87.313,23.9461]
[1646571331082,1.56040788,87.354,87.313,23.9461]
[1646571331283,1.56040788,87.353,87.313,23.9461]
[1646571332787,1.56040788,87.35,87.313,23.9461]
[1646571333185,1.56040788,87.349,87.313,23.9461]
[1646571333585,114.7,87.347,87.313,23.9461]
[1646571333786,114.7,87.347,87.307,50.60279536]
[1646571334187,114.7,87.347,87.307,77.69958936]
[1646571334385,114.7,87.347,87.308,2.83613526]
[1646571334584,1.56040788,87.349,87.308,2.83613526]
[1646571334785,1.56040788,87.35,87.309,27.096794]
[1646571334985,1.56040788,87.35,87.31,17.1854]
[1646571335185,1.56040788,87.351,87.31,20.02153526]
[1646571335389,1.56040788,87.35,87.31,20.02153526]
[1646571336485,1.56040788,87.348,87.311,29.93292926]
[1646571336885,1.56040788,87.348,87.312,2.83613526]
[1646571337085,1.56040788,87.349,87.312,2.83613526]
[1646571337685,1.06040788,87.349,87.313,27.096794]
[1646571338087,1.06040788,87.349,87.314,2.83613526]
[1646571338388,5.724,87.36,87.314,2.83613526]
[1646571338986,120.424,87.36,87.314,2.83613526]
[1646571342088,5.724,87.36,87.314,2.83613526]
[1646571342291,120.424,87.36,87.314,28.93292926]
[1646571346993,120.424,87.36,87.314,1.83613526]
[1646571347194,120.424,87.36,87.307,50.60279536]
[1646571347393,114.7,87.358,87.307,50.60279536]
[1646571347593,5.724,87.357,87.307,50.60279536]
[1646571348395,5.724,87.357,87.308,27.096794]
[1646571348598,114.7,87.355,87.308,27.096794]
[1646571348796,5.724,87.354,87.308,29.93292926]
[1646571349298,5.724,87.354,87.309,27.096794]
[1646571349796,5.724,87.359,87.309,27.096794]
[1646571349996,22.8581,87.361,87.31,20.02163526]
[1646571350199,6.26363078,87.36,87.31,20.02163526]
[1646571351302,6.26363078,87.36,87.311,29.93292926]
[1646571351696,6.26363078,87.36,87.312,29.93292926]
[1646571351897,114.7,87.359,87.312,29.93292926]
[1646571352097,114.7,87.357,87.312,29.93292926]
[1646571352398,177.29671212,87.357,87.312,29.93292926]
[1646571353397,114.7,87.355,87.312,29.93292926]
[1646571353800,114.7,87.355,87.312,2.83613526]
[1646571353997,5.724,87.354,87.307,50.60279536]
[1646571354196,114.7,87.353,87.307,50.60279536]
[1646571354417,5.724,87.352,87.301,22.7423]
[1646571354598,138.3213,87.351,87.301,22.7423]
[1646571354799,5.724,87.35,87.301,49.839094]
[1646571354999,5.724,87.35,87.301,27.096794]
[1646571355800,114.7,87.348,87.287,27.096794]
[1646571356001,5.726,87.347,87.287,27.096794]
[1646571356200,117.82204246,87.346,87.287,27.096794]
[1646571356404,114.7,87.344,87.287,27.096794]
[1646571356603,114.7,87.341,87.287,84.32466063]
[1646571356901,114.7,87.339,87.288,27.096794]
[1646571357110,114.7,87.337,87.288,27.096794]
[1646571357307,5.726,87.336,87.288,27.096794]
[1646571359409,5.726,87.336,87.288,32.822794]
[1646571359815,114.7,87.335,87.288,32.822794]
[1646571360018,114.7,87.335,87.265,17.5318]
[1646571360019,5.50831908,87.333,87.275,2.83613526]
[1646571360213,5.727,87.332,87.275,2.83613526]
[1646571360512,114.7,87.331,87.275,2.83613526]
[1646571360709,5.727,87.33,87.275,2.33613526]
[1646571361313,120.427,87.33,87.275,2.33613526]
[1646571361713,4.42897876,87.323,87.275,2.33613526]
[1646571361930,114.7,87.321,87.275,2.33613526]
[1646571362131,114.7,87.319,87.275,2.33613526]
[1646571362331,5.727,87.318,87.275,2.33613526]
[1646571364036,5.727,87.318,87.276,27.096794]
[1646571369040,114.7,87.317,87.276,27.096794]
[1646571369242,114.7,87.317,87.275,2.33613526]
[1646571369243,5.23856932,87.314,87.275,2.33613526]
[1646571369448,5.727,87.313,87.275,2.33613526]
[1646571369641,5.727,87.313,87.263,5.727]
[1646571369841,5.727,87.313,87.249,27.096794]
[1646571370543,17.70087356,87.313,87.249,27.096794]
[1646571370742,114.7,87.312,87.249,27.096794]
[1646571370943,5.728,87.311,87.249,27.096794]
[1646571371344,114.7,87.307,87.25,5.728]
[1646571371643,4.77793787,87.304,87.251,27.096794]
[1646571371847,4.77793787,87.304,87.252,5.728]
[1646571372242,4.77793787,87.304,87.253,27.096794]
[1646571372442,4.77793787,87.304,87.254,5.728]
[1646571372843,4.77793787,87.304,87.254,32.824794]
[1646571373042,4.77793787,87.304,87.254,27.096794]
[1646571373850,5.728,87.303,87.254,27.096794]
[1646571380348,5.728,87.303,87.242,5.728]
[1646571380550,5.728,87.303,87.241,27.096794]
[1646571380749,0.40206444,87.302,87.241,27.096794]
[1646571380948,0.40206444,87.3,87.241,27.096794]
[1646571381150,5.729,87.299,87.241,27.096794]
[1646571381349,4.77793787,87.304,87.242,56.79375768]
[1646571381350,5.729,87.303,87.242,56.79375768]
[1646571381549,183.51,87.299,87.242,56.79375768]
[1646571381750,114.7,87.297,87.243,32.825794]
[1646571382150,114.7,87.297,87.244,27.096794]
[1646571382450,114.7,87.297,87.245,24.3251]
[1646571382651,114.7,87.297,87.246,5.729]
[1646571382952,114.7,87.297,87.246,32.825794]
[1646571383151,114.7,87.297,87.25,17.1972]
[1646571383551,114.7,87.297,87.25,44.293994]
[1646571388280,5.729,87.296,87.25,27.096794]
[1646571389383,5.729,87.296,87.251,2.83613526]
[1646571390583,5.729,87.296,87.251,29.93292926]
[1646571390983,5.729,87.296,87.252,2.83613526]
[1646571394693,5.729,87.296,87.252,29.93292926]
[1646571394887,114.7,87.297,87.252,29.93292926]
[1646571395087,114.7,87.297,87.252,2.83613526]
[1646571395289,5.729,87.296,87.253,2.83613526]
[1646571395488,183.51,87.295,87.253,2.83613526]
[1646571395688,114.7,87.293,87.253,2.83613526]
[1646571395889,5.729,87.292,87.253,2.83613526]
[1646571396089,200.7148,87.29,87.253,2.83613526]
[1646571396291,5.729,87.289,87.246,5.729]
[1646571396591,183.51,87.287,87.246,5.729]
[1646571396789,5.65004617,87.285,87.246,5.729]
[1646571396992,5.729,87.284,87.246,5.729]
[1646571397389,5.729,87.284,87.226,48.73341596]
[1646571397589,183.51,87.279,87.225,27.096794]
[1646571397789,0.40360415,87.278,87.225,27.096794]
[1646571397989,183.51,87.279,87.225,27.096794]
[1646571398191,183.51,87.275,87.225,27.096794]
[1646571398591,114.7,87.273,87.225,27.096794]
[1646571398789,5.73,87.272,87.225,27.096794]
[1646571398992,5.40895529,87.265,87.212,27.096794]
[1646571399190,68.81,87.262,87.212,27.096794]
[1646571399389,114.7,87.247,87.195,27.096794]
[1646571399589,0.41460058,87.243,87.195,27.096794]
[1646571399793,5.732,87.242,87.195,27.096794]
[1646571399994,114.7,87.24,87.196,54.52761182]
[1646571400192,5.732,87.239,87.196,54.02761182]
[1646571400494,74.59472035,87.233,87.197,26.79614785]
[1646571400693,114.7,87.224,87.181,26.79614785]
[1646571400890,5.732,87.223,87.181,26.79614785]
[1646571401390,114.7,87.221,87.182,54.89354456]
[1646571401591,5.732,87.22,87.182,54.89354456]
[1646571401890,5.732,87.22,87.183,26.79614785]
[1646571402493,3.12204246,87.261,87.184,28.93296905]
[1646571402793,4.13851343,87.262,87.185,69.00334553]
[1646571402994,3.12204246,87.276,87.185,71.83948079]
[1646571403200,5.731,87.275,87.186,96.04678079]
[1646571403392,55.46110391,87.274,87.19,17.2101]
[1646571403593,114.7,87.262,87.19,17.2101]
[1646571403892,114.7,87.259,87.191,45.04333294]
[1646571404192,120.432,87.259,87.192,16.11036389]
[1646571404392,114.7,87.257,87.192,16.11036389]
[1646571404597,5.732,87.256,87.192,18.94649915]
[1646571404802,5.732,87.256,87.193,2.83613526]
[1646571405395,183.51,87.255,87.193,2.83613526]
[1646571405596,114.7,87.253,87.192,16.11036389]
[1646571405797,56.67099872,87.243,87.192,16.11036389]
[1646571405996,56.67099872,87.243,87.19,17.2101]
[1646571405997,114.7,87.242,87.19,17.2101]
[1646571406397,119.9298683,87.242,87.19,17.2101]
[1646571406699,119.28712517,87.242,87.186,24.2073]
[1646571407301,114.7,87.24,87.186,24.2073]
[1646571407498,114.7,87.238,87.186,24.2073]
[1646571407701,114.7,87.23,87.179,16.11036389]
[1646571407900,68.81,87.231,87.179,16.11036389]
[1646571407901,114.7,87.227,87.179,16.11036389]
[1646571408101,120.432,87.227,87.17,2.83613526]
[1646571408303,114.7,87.225,87.17,2.83613526]
[1646571408500,5.734,87.224,87.17,2.83613526]
[1646571408702,114.7,87.222,87.17,2.83613526]
[1646571408902,114.7,87.218,87.165,40.42426389]
[1646571409203,114.7,87.218,87.166,53.68880535]
[1646571409808,3.12204246,87.26,87.167,27.20561645]
[1646571410005,5.58055851,87.255,87.167,27.20561645]
[1646571410204,5.58055851,87.255,87.168,69.41281413]
[1646571410404,5.58055851,87.255,87.17,17.2141]
[1646571410603,23.7932,87.254,87.17,17.2141]
[1646571410805,114.7,87.227,87.17,17.2141]
[1646571411004,114.7,87.227,87.17,20.05023526]
[1646571411404,114.7,87.227,87.171,24.36948119]
[1646571411604,68.81,87.253,87.18,17.2122]
[1646571411805,120.432,87.252,87.18,17.2122]
[1646571412209,120.432,87.252,87.181,2.83613526]
[1646571412411,120.432,87.252,87.182,23.2408]
[1646571412611,114.7,87.25,87.19,17.2101]
[1646571412809,5.732,87.249,87.19,17.2101]
[1646571413210,5.732,87.249,87.191,2.83613526]
[1646571414109,5.732,87.249,87.2,17.2084]
[1646571414308,5.732,87.249,87.201,64.29637957]
[1646571415112,5.732,87.249,87.2,17.2084]
[1646571415311,114.7,87.248,87.192,5.732]
[1646571415508,5.732,87.247,87.192,5.732]
[1646571415718,68.81,87.241,87.192,5.732]
[1646571415910,4.01987838,87.231,87.172,5.732]